[Event "Early-Titled-Tuesday-Blitz-January-16-2024"]
[Site "Chess.com"]
[Date "2024.01.16"]
[Round "10"]
[White "Ural_bogatyr"]
[Black "andrzej"]
[Result "1-0"]
[WhiteElo "2537"]
[BlackElo "2372"]
[TimeControl "180+1"]
[EndTime "9:56:59 PST"]
[Termination "Ural_bogatyr won by resignation"]

1. d4 {[%clk 0:02:56.5]} 1... d5 {[%clk 0:02:59.8]} 2. Nc3 {[%clk 0:02:56]} 2...
Nf6 {[%clk 0:02:59.5]} 3. Bf4 {[%clk 0:02:56.4]} 3... c5 {[%clk 0:02:59.7]} 4.
e4 {[%clk 0:02:56.4]} 4... Nxe4 {[%clk 0:02:59.3]} 5. Nxe4 {[%clk 0:02:56.3]}
5... dxe4 {[%clk 0:02:59.7]} 6. dxc5 {[%clk 0:02:57.2]} 6... Qa5+ {[%clk
0:03:00.3]} 7. c3 {[%clk 0:02:57.8]} 7... Qxc5 {[%clk 0:03:00.8]} 8. Qa4+ {[%clk
0:02:58.4]} 8... Nc6 {[%clk 0:03:00.9]} 9. Qxe4 {[%clk 0:02:59]} 9... g6 {[%clk
0:03:00.7]} 10. Nf3 {[%clk 0:02:59.2]} 10... Bg7 {[%clk 0:03:00.5]} 11. Qe3
{[%clk 0:03:00.1]} 11... Qxe3+ {[%clk 0:02:51.1]} 12. Bxe3 {[%clk 0:03:01]}
12... O-O {[%clk 0:02:51.3]} 13. Be2 {[%clk 0:03:01.5]} 13... Be6 {[%clk
0:02:50.4]} 14. O-O {[%clk 0:03:02.1]} 14... Na5 {[%clk 0:02:50.6]} 15. Rfd1
{[%clk 0:03:02]} 15... Bc4 {[%clk 0:02:49]} 16. Kf1 {[%clk 0:03:00.8]} 16...
Bxe2+ {[%clk 0:02:48.6]} 17. Kxe2 {[%clk 0:03:01.7]} 17... Nc4 {[%clk
0:02:48.6]} 18. Bd4 {[%clk 0:03:01.9]} 18... e5 {[%clk 0:02:43.5]} 19. Be3
{[%clk 0:02:55.2]} 19... b6 {[%clk 0:02:39.3]} 20. b3 {[%clk 0:02:48.5]} 20...
Nxe3 {[%clk 0:02:38.9]} 21. fxe3 {[%clk 0:02:49.2]} 21... Rfc8 {[%clk
0:02:30.6]} 22. c4 {[%clk 0:02:48.8]} 22... f5 {[%clk 0:02:06.2]} 23. Rd7 {[%clk
0:02:45.2]} 23... b5 {[%clk 0:01:53.7]} 24. Rc1 {[%clk 0:02:41]} 24... bxc4
{[%clk 0:01:41.2]} 25. Rxc4 {[%clk 0:02:35.8]} 25... Rxc4 {[%clk 0:01:40.7]} 26.
bxc4 {[%clk 0:02:36.7]} 26... Rc8 {[%clk 0:01:34.4]} 27. Rxa7 {[%clk 0:02:33.8]}
27... Rxc4 {[%clk 0:01:34.7]} 28. Ng5 {[%clk 0:02:32.3]} 28... Rc8 {[%clk
0:01:08.5]} 29. Ne6 {[%clk 0:02:30.6]} 29... Bf6 {[%clk 0:01:03.9]} 30. a4
{[%clk 0:02:26.8]} 30... Rc2+ {[%clk 0:00:53.7]} 31. Kf1 {[%clk 0:02:26.7]}
31... e4 {[%clk 0:00:51.3]} 32. a5 {[%clk 0:02:16.3]} 32... Rc6 {[%clk
0:00:38.6]} 33. Nf4 {[%clk 0:02:08.2]} 33... Be5 {[%clk 0:00:26.7]} 34. Nd5
{[%clk 0:02:07.1]} 34... Rc1+ {[%clk 0:00:18.7]} 35. Ke2 {[%clk 0:02:04.9]}
35... Rc2+ {[%clk 0:00:19.2]} 36. Kf1 {[%clk 0:02:02.4]} 36... Rc1+ {[%clk
0:00:19.5]} 37. Ke2 {[%clk 0:02:02.6]} 37... Rc2+ {[%clk 0:00:19.9]} 38. Kd1
{[%clk 0:01:53.2]} 38... Rxg2 {[%clk 0:00:19.2]} 39. a6 {[%clk 0:01:53.6]} 39...
Rxh2 {[%clk 0:00:16.1]} 40. Ne7+ {[%clk 0:01:52.4]} 40... Kf7 {[%clk 0:00:14.1]}
41. Nc6+ {[%clk 0:01:46.7]} 41... Ke6 {[%clk 0:00:14.4]} 42. Re7+ {[%clk
0:01:44.6]} 42... Kd6 {[%clk 0:00:14.5]} 43. Rxe5 {[%clk 0:01:45]} 43... Kxc6
{[%clk 0:00:14.3]} 44. Ra5 {[%clk 0:01:44.2]} 44... Rh1+ {[%clk 0:00:13.3]} 45.
Kd2 {[%clk 0:01:43.5]} 45... Rh2+ {[%clk 0:00:12.6]} 46. Kc3 {[%clk 0:01:41.5]}
46... Kb6 {[%clk 0:00:09.1]} 47. a7 {[%clk 0:01:41.7]} 47... Kxa5 {[%clk
0:00:08.9]} 48. a8=Q+ {[%clk 0:01:41.8]} 48... Kb5 {[%clk 0:00:08.5]} 49. Qb8+
{[%clk 0:01:42.4]} 49... Kc5 {[%clk 0:00:08.9]} 50. Qxh2 {[%clk 0:01:43.3]} 1-0

[Event "Early-Titled-Tuesday-Blitz-January-16-2024"]
[Site "Chess.com"]
[Date "2024.01.16"]
[Round "10"]
[White "supereagles1201"]
[Black "mertfelin"]
[Result "0-1"]
[WhiteElo "2351"]
[BlackElo "2236"]
[TimeControl "180+1"]
[EndTime "9:57:04 PST"]
[Termination "mertfelin won by checkmate"]

1. c4 {[%clk 0:03:00.9]} 1... e6 {[%clk 0:02:50.4]} 2. Nf3 {[%clk 0:02:59.8]}
2... d5 {[%clk 0:02:51.3]} 3. g3 {[%clk 0:02:59.6]} 3... Nf6 {[%clk 0:02:51.8]}
4. d4 {[%clk 0:02:59.6]} 4... Be7 {[%clk 0:02:52.2]} 5. Bg2 {[%clk 0:02:59.9]}
5... O-O {[%clk 0:02:52.9]} 6. O-O {[%clk 0:03:00]} 6... dxc4 {[%clk 0:02:53.6]}
7. Qc2 {[%clk 0:02:59.9]} 7... b5 {[%clk 0:02:53.7]} 8. a4 {[%clk 0:02:58.2]}
8... b4 {[%clk 0:02:54.3]} 9. Qxc4 {[%clk 0:02:52]} 9... Ba6 {[%clk 0:02:54.4]}
10. Qc2 {[%clk 0:02:51.1]} 10... Nbd7 {[%clk 0:02:54.8]} 11. Nbd2 {[%clk
0:02:36.1]} 11... c5 {[%clk 0:02:54.7]} 12. Ne5 {[%clk 0:02:29.7]} 12... Rc8
{[%clk 0:02:21.4]} 13. Nc6 {[%clk 0:02:22.3]} 13... Qe8 {[%clk 0:02:21.9]} 14.
Nxe7+ {[%clk 0:02:10]} 14... Qxe7 {[%clk 0:02:22.8]} 15. dxc5 {[%clk 0:01:50.6]}
15... Nxc5 {[%clk 0:02:23.2]} 16. Nf3 {[%clk 0:01:35.5]} 16... b3 {[%clk
0:02:23.7]} 17. Qd2 {[%clk 0:01:19.8]} 17... Rfd8 {[%clk 0:02:18]} 18. Qe3
{[%clk 0:01:19.3]} 18... Nd5 {[%clk 0:02:10.5]} 19. Qe5 {[%clk 0:01:14.4]} 19...
Nb4 {[%clk 0:01:59.2]} 20. Bd2 {[%clk 0:00:59.9]} 20... Rd5 {[%clk 0:01:58.9]}
21. Qf4 {[%clk 0:00:55]} 21... Nc2 {[%clk 0:01:56.4]} 22. e4 {[%clk 0:00:21.8]}
22... Rdd8 {[%clk 0:01:47.7]} 23. Bc3 {[%clk 0:00:19.7]} 23... Nd3 {[%clk
0:01:22.8]} 24. Qg4 {[%clk 0:00:17.6]} 24... Rxc3 {[%clk 0:01:23.2]} 25. bxc3
{[%clk 0:00:16.5]} 25... Nxa1 {[%clk 0:01:23.6]} 26. Rxa1 {[%clk 0:00:15.5]}
26... b2 {[%clk 0:01:24.1]} 27. Rb1 {[%clk 0:00:14.9]} 27... Qa3 {[%clk
0:01:15.6]} 28. Nd2 {[%clk 0:00:13.7]} 28... Qxc3 {[%clk 0:01:13.1]} 29. Qg5
{[%clk 0:00:13.3]} 29... f6 {[%clk 0:01:10.1]} 30. Qe3 {[%clk 0:00:11.9]} 30...
Qc1+ {[%clk 0:00:48.6]} 31. Bf1 {[%clk 0:00:11.9]} 31... Ne5 {[%clk 0:00:49.2]}
32. f4 {[%clk 0:00:08.7]} 32... Rxd2 {[%clk 0:00:46.7]} 33. fxe5 {[%clk
0:00:07.4]} 33... Qxb1 {[%clk 0:00:47.2]} 34. Qxd2 {[%clk 0:00:06.7]} 34...
Qxf1# {[%clk 0:00:47.6]} 0-1

[Event "Early-Titled-Tuesday-Blitz-January-16-2024"]
[Site "Chess.com"]
[Date "2024.01.16"]
[Round "10"]
[White "Vazabanga"]
[Black "forevery0ung"]
[Result "0-1"]
[WhiteElo "2693"]
[BlackElo "2848"]
[TimeControl "180+1"]
[EndTime "9:57:10 PST"]
[Termination "forevery0ung won by resignation"]

1. d4 {[%clk 0:03:00.9]} 1... e6 {[%clk 0:02:59.3]} 2. c4 {[%clk 0:03:01.1]}
2... b6 {[%clk 0:02:59.8]} 3. a3 {[%clk 0:02:59.9]} 3... Bb7 {[%clk 0:02:59.2]}
4. Nc3 {[%clk 0:03:00.5]} 4... Nf6 {[%clk 0:02:59]} 5. Qc2 {[%clk 0:02:57.3]}
5... d5 {[%clk 0:02:58.7]} 6. cxd5 {[%clk 0:02:57.3]} 6... Nxd5 {[%clk
0:02:59.4]} 7. Nf3 {[%clk 0:02:49.7]} 7... c5 {[%clk 0:02:56.7]} 8. e4 {[%clk
0:02:36.1]} 8... Nxc3 {[%clk 0:02:50.3]} 9. bxc3 {[%clk 0:02:37]} 9... cxd4
{[%clk 0:02:49.1]} 10. cxd4 {[%clk 0:02:36.7]} 10... Nd7 {[%clk 0:02:46.2]} 11.
Bd3 {[%clk 0:02:30.7]} 11... Rc8 {[%clk 0:02:44.9]} 12. Qe2 {[%clk 0:02:30.6]}
12... Be7 {[%clk 0:02:43.7]} 13. O-O {[%clk 0:02:30.4]} 13... O-O {[%clk
0:02:43.8]} 14. Bb2 {[%clk 0:02:22.1]} 14... Nf6 {[%clk 0:02:41.4]} 15. Rfc1
{[%clk 0:02:21.1]} 15... Rxc1+ {[%clk 0:02:38.1]} 16. Rxc1 {[%clk 0:02:22]}
16... Qa8 {[%clk 0:02:34.4]} 17. Nd2 {[%clk 0:02:08.8]} 17... Rc8 {[%clk
0:02:32]} 18. Rxc8+ {[%clk 0:02:01.6]} 18... Qxc8 {[%clk 0:02:32.9]} 19. f3
{[%clk 0:02:01.7]} 19... h5 {[%clk 0:02:30.1]} 20. Nc4 {[%clk 0:01:32.9]} 20...
h4 {[%clk 0:02:27.9]} 21. Qc2 {[%clk 0:01:29.7]} 21... Nh5 {[%clk 0:02:17]} 22.
Ne3 {[%clk 0:01:25.1]} 22... Qd8 {[%clk 0:02:12.4]} 23. Bf1 {[%clk 0:01:15.3]}
23... Nf4 {[%clk 0:02:10.9]} 24. Kf2 {[%clk 0:01:09.2]} 24... Bf6 {[%clk
0:02:06.9]} 25. Qd2 {[%clk 0:01:04.8]} 25... Qc7 {[%clk 0:01:43.9]} 26. Ng4
{[%clk 0:01:01.1]} 26... Be7 {[%clk 0:01:39.3]} 27. Ne5 {[%clk 0:00:47]} 27...
Nh5 {[%clk 0:01:34.9]} 28. Kg1 {[%clk 0:00:43.2]} 28... Nf6 {[%clk 0:01:22.2]}
29. Qc3 {[%clk 0:00:42.9]} 29... Qxc3 {[%clk 0:01:19.4]} 30. Bxc3 {[%clk
0:00:43.8]} 30... Bxa3 {[%clk 0:01:19.5]} 31. Kf2 {[%clk 0:00:41.3]} 31... Bxe4
{[%clk 0:01:17]} 32. Ke2 {[%clk 0:00:14.6]} 32... Bb7 {[%clk 0:01:13.6]} 33. Kd2
{[%clk 0:00:14.6]} 33... Nd5 {[%clk 0:01:13.2]} 34. g3 {[%clk 0:00:12.5]} 34...
hxg3 {[%clk 0:01:12.6]} 35. hxg3 {[%clk 0:00:13.4]} 35... Nxc3 {[%clk
0:01:11.6]} 36. Kxc3 {[%clk 0:00:14.3]} 36... Bd6 {[%clk 0:01:10.5]} 37. f4
{[%clk 0:00:14.1]} 37... Kf8 {[%clk 0:01:10.4]} 38. Nc4 {[%clk 0:00:13.7]} 38...
Ke7 {[%clk 0:01:10.5]} 39. Bd3 {[%clk 0:00:13.9]} 39... Bd5 {[%clk 0:01:09]} 40.
Ne3 {[%clk 0:00:14.1]} 40... Bb7 {[%clk 0:01:09]} 41. Bc4 {[%clk 0:00:13.2]}
41... f6 {[%clk 0:01:08.7]} 42. d5 {[%clk 0:00:13.1]} 42... Bc5 {[%clk
0:01:05.9]} 43. Ng4 {[%clk 0:00:08.5]} 43... Bxd5 {[%clk 0:01:04.8]} 0-1

[Event "Early-Titled-Tuesday-Blitz-January-16-2024"]
[Site "Chess.com"]
[Date "2024.01.16"]
[Round "10"]
[White "Kaissa10"]
[Black "MdChess1734"]
[Result "1-0"]
[WhiteElo "2287"]
[BlackElo "2394"]
[TimeControl "180+1"]
[EndTime "9:57:13 PST"]
[Termination "Kaissa10 won on time"]

1. e4 {[%clk 0:03:00.9]} 1... c6 {[%clk 0:02:59]} 2. d4 {[%clk 0:03:00]} 2... d5
{[%clk 0:02:59.2]} 3. Nc3 {[%clk 0:03:00.3]} 3... dxe4 {[%clk 0:02:58.3]} 4.
Nxe4 {[%clk 0:03:01.2]} 4... Nf6 {[%clk 0:02:58.8]} 5. Nxf6+ {[%clk 0:03:00.5]}
5... exf6 {[%clk 0:02:59.4]} 6. c3 {[%clk 0:03:01.2]} 6... Bd6 {[%clk
0:02:59.8]} 7. Bd3 {[%clk 0:03:01.4]} 7... O-O {[%clk 0:02:59.5]} 8. Qc2 {[%clk
0:03:00.2]} 8... Re8+ {[%clk 0:02:59.2]} 9. Ne2 {[%clk 0:02:59.5]} 9... h5
{[%clk 0:02:59.4]} 10. O-O {[%clk 0:02:58.3]} 10... h4 {[%clk 0:02:59.1]} 11. h3
{[%clk 0:02:58.3]} 11... Nd7 {[%clk 0:02:52]} 12. c4 {[%clk 0:02:56]} 12... Nf8
{[%clk 0:02:51.7]} 13. Be3 {[%clk 0:02:44.8]} 13... Bc7 {[%clk 0:02:45.1]} 14.
Rad1 {[%clk 0:02:39.4]} 14... Be6 {[%clk 0:02:18.4]} 15. d5 {[%clk 0:02:14.2]}
15... cxd5 {[%clk 0:01:50.1]} 16. Be4 {[%clk 0:01:51.7]} 16... g5 {[%clk
0:00:48.6]} 17. cxd5 {[%clk 0:01:46.1]} 17... Qd6 {[%clk 0:00:46.3]} 18. f4
{[%clk 0:01:33.9]} 18... Bf5 {[%clk 0:00:38.9]} 19. Bxf5 {[%clk 0:01:14.8]}
19... Rxe3 {[%clk 0:00:38.7]} 20. Rd3 {[%clk 0:01:00.9]} 20... Rae8 {[%clk
0:00:33.5]} 21. Rxe3 {[%clk 0:00:58.7]} 21... Rxe3 {[%clk 0:00:32]} 22. Qd2
{[%clk 0:00:43]} 22... Bb6 {[%clk 0:00:28.8]} 23. Kh1 {[%clk 0:00:43.5]} 23...
Re8 {[%clk 0:00:03.7]} 24. Nc3 {[%clk 0:00:43.3]} 24... Bc7 {[%clk 0:00:02.7]}
25. Nb5 {[%clk 0:00:40.5]} 25... Qb6 {[%clk 0:00:02.9]} 26. Nxc7 {[%clk
0:00:40.2]} 26... Qxc7 {[%clk 0:00:03.7]} 27. fxg5 {[%clk 0:00:40.7]} 1-0

[Event "Early-Titled-Tuesday-Blitz-January-16-2024"]
[Site "Chess.com"]
[Date "2024.01.16"]
[Round "10"]
[White "Cambek64"]
[Black "Felix-Rose"]
[Result "1-0"]
[WhiteElo "2452"]
[BlackElo "2229"]
[TimeControl "180+1"]
[EndTime "9:57:14 PST"]
[Termination "Cambek64 won by resignation"]

1. e4 {[%clk 0:02:23.5]} 1... e5 {[%clk 0:02:59.2]} 2. Nf3 {[%clk 0:02:22.7]}
2... Nc6 {[%clk 0:02:59.4]} 3. Bb5 {[%clk 0:02:23.1]} 3... a6 {[%clk 0:02:59.4]}
4. Bxc6 {[%clk 0:02:23.5]} 4... dxc6 {[%clk 0:02:59.5]} 5. d4 {[%clk 0:02:24]}
5... exd4 {[%clk 0:02:59.3]} 6. Qxd4 {[%clk 0:02:21.7]} 6... Qxd4 {[%clk
0:02:57.5]} 7. Nxd4 {[%clk 0:02:22.5]} 7... Bd7 {[%clk 0:02:57]} 8. Be3 {[%clk
0:02:22.6]} 8... O-O-O {[%clk 0:02:56.8]} 9. Nd2 {[%clk 0:02:20.7]} 9... Ne7
{[%clk 0:02:57]} 10. O-O-O {[%clk 0:02:20.7]} 10... f5 {[%clk 0:02:53.8]} 11.
exf5 {[%clk 0:02:14]} 11... Nxf5 {[%clk 0:02:54]} 12. Nxf5 {[%clk 0:02:14.4]}
12... Bxf5 {[%clk 0:02:54.9]} 13. Nb3 {[%clk 0:02:09.7]} 13... Bd6 {[%clk
0:02:48.8]} 14. h3 {[%clk 0:02:04]} 14... Rhf8 {[%clk 0:02:41.7]} 15. Rhe1
{[%clk 0:02:02.7]} 15... Rde8 {[%clk 0:02:36.2]} 16. Nd4 {[%clk 0:02:00.6]}
16... Be4 {[%clk 0:02:26.9]} 17. g3 {[%clk 0:01:54.2]} 17... h6 {[%clk 0:02:12]}
18. h4 {[%clk 0:01:50.3]} 18... c5 {[%clk 0:02:05]} 19. Nb3 {[%clk 0:01:48.5]}
19... b6 {[%clk 0:02:03.6]} 20. Nd2 {[%clk 0:01:48.8]} 20... Bd5 {[%clk
0:01:56.8]} 21. c4 {[%clk 0:01:46.9]} 21... Bg8 {[%clk 0:01:54.7]} 22. b3 {[%clk
0:01:39.9]} 22... Re6 {[%clk 0:01:45.6]} 23. Nb1 {[%clk 0:01:37.4]} 23... Rfe8
{[%clk 0:01:43.7]} 24. Bd2 {[%clk 0:01:35.8]} 24... Rxe1 {[%clk 0:01:38.9]} 25.
Rxe1 {[%clk 0:01:34.7]} 25... Rf8 {[%clk 0:01:30]} 26. f4 {[%clk 0:01:33.7]}
26... g5 {[%clk 0:01:23.9]} 27. hxg5 {[%clk 0:01:29.9]} 27... hxg5 {[%clk
0:01:23.7]} 28. fxg5 {[%clk 0:01:29.3]} 28... Bxg3 {[%clk 0:01:23.7]} 29. Rg1
{[%clk 0:01:29.1]} 29... Bf2 {[%clk 0:01:21.9]} 30. Rf1 {[%clk 0:01:27.9]} 30...
Rf3 {[%clk 0:00:55.9]} 31. Nc3 {[%clk 0:01:21.7]} 31... Be6 {[%clk 0:00:48.1]}
32. Nd1 {[%clk 0:01:19.8]} 32... Rg3 {[%clk 0:00:31.2]} 33. Rxf2 {[%clk
0:01:17.5]} 33... Rg1 {[%clk 0:00:31.1]} 34. Be3 {[%clk 0:01:13.4]} 34... Rh1
{[%clk 0:00:28.3]} 35. Kd2 {[%clk 0:01:10.1]} 35... Bg4 {[%clk 0:00:27.8]} 36.
Nc3 {[%clk 0:01:10.4]} 36... b5 {[%clk 0:00:23.1]} 37. Bxc5 {[%clk 0:01:04.8]}
37... bxc4 {[%clk 0:00:20.2]} 38. bxc4 {[%clk 0:01:04.6]} 38... Kb7 {[%clk
0:00:17.9]} 39. Rg2 {[%clk 0:01:03.6]} 39... Bf3 {[%clk 0:00:17.3]} 40. Rg3
{[%clk 0:01:04]} 40... Bc6 {[%clk 0:00:17]} 41. g6 {[%clk 0:01:03.4]} 1-0

[Event "Early-Titled-Tuesday-Blitz-January-16-2024"]
[Site "Chess.com"]
[Date "2024.01.16"]
[Round "10"]
[White "NowInChess"]
[Black "KVAIDAN"]
[Result "0-1"]
[WhiteElo "2289"]
[BlackElo "2397"]
[TimeControl "180+1"]
[EndTime "9:57:15 PST"]
[Termination "KVAIDAN won on time"]

1. e4 {[%clk 0:03:00.9]} 1... e5 {[%clk 0:02:44.2]} 2. Nf3 {[%clk 0:02:59.7]}
2... d5 {[%clk 0:02:44.6]} 3. Nxe5 {[%clk 0:02:53.6]} 3... Bd6 {[%clk
0:02:43.8]} 4. d4 {[%clk 0:02:51.4]} 4... dxe4 {[%clk 0:02:43.7]} 5. Nc3 {[%clk
0:02:44.5]} 5... Bxe5 {[%clk 0:02:43.1]} 6. dxe5 {[%clk 0:02:44.1]} 6... Qxd1+
{[%clk 0:02:43.6]} 7. Kxd1 {[%clk 0:02:37.9]} 7... Bf5 {[%clk 0:02:42.4]} 8. Nd5
{[%clk 0:02:22.5]} 8... Kd7 {[%clk 0:02:28.5]} 9. Bb5+ {[%clk 0:01:56.8]} 9...
c6 {[%clk 0:02:26.7]} 10. Ne3 {[%clk 0:01:56.8]} 10... Ne7 {[%clk 0:02:18.5]}
11. Bc4 {[%clk 0:01:50.3]} 11... Be6 {[%clk 0:02:14.1]} 12. Ke2 {[%clk
0:01:45.7]} 12... Bxc4+ {[%clk 0:02:13.4]} 13. Nxc4 {[%clk 0:01:45.8]} 13... Ke6
{[%clk 0:02:13.8]} 14. Rd1 {[%clk 0:01:24.8]} 14... Nd5 {[%clk 0:02:10.8]} 15.
f4 {[%clk 0:01:15]} 15... exf3+ {[%clk 0:02:09.7]} 16. gxf3 {[%clk 0:01:05]}
16... b5 {[%clk 0:02:10.2]} 17. Nd6 {[%clk 0:01:03.9]} 17... Nd7 {[%clk
0:02:09.8]} 18. f4 {[%clk 0:00:58.1]} 18... g6 {[%clk 0:02:07.3]} 19. c4 {[%clk
0:00:52.1]} 19... bxc4 {[%clk 0:02:04.7]} 20. Nxc4 {[%clk 0:00:53]} 20... f6
{[%clk 0:02:03]} 21. exf6 {[%clk 0:00:35.7]} 21... N7xf6 {[%clk 0:02:03]} 22.
Bd2 {[%clk 0:00:23.4]} 22... Ne4 {[%clk 0:02:01.6]} 23. Rf1 {[%clk 0:00:19.2]}
23... Rab8 {[%clk 0:02:00.8]} 24. b3 {[%clk 0:00:18.3]} 24... Rhf8 {[%clk
0:01:58.9]} 25. Be3 {[%clk 0:00:16.2]} 25... Rf7 {[%clk 0:01:53]} 26. Ne5 {[%clk
0:00:14.9]} 26... Rc7 {[%clk 0:01:51.9]} 27. Rac1 {[%clk 0:00:12.3]} 27... c5
{[%clk 0:01:49.5]} 28. Kd3 {[%clk 0:00:11.1]} 28... Ndf6 {[%clk 0:01:45.8]} 29.
Nc4 {[%clk 0:00:08.8]} 29... Rd8+ {[%clk 0:01:46.1]} 30. Ke2 {[%clk 0:00:08.5]}
30... Nd5 {[%clk 0:01:39.1]} 31. Kf3 {[%clk 0:00:07.8]} 31... Kf5 {[%clk
0:01:36.9]} 32. Rfd1 {[%clk 0:00:05.9]} 32... Rcd7 {[%clk 0:01:24.6]} 33. Rg1
{[%clk 0:00:04.7]} 33... h6 {[%clk 0:01:23.2]} 34. Ne5 {[%clk 0:00:04.1]} 34...
Rd6 {[%clk 0:01:14]} 35. Bxc5 {[%clk 0:00:03.6]} 35... Nd2+ {[%clk 0:01:06]} 36.
Ke2 {[%clk 0:00:03]} 36... Nxf4+ {[%clk 0:01:06]} 37. Ke1 {[%clk 0:00:01.3]}
37... Kxe5 {[%clk 0:00:57]} 38. Bxd6+ {[%clk 0:00:01.1]} 38... Rxd6 {[%clk
0:00:56.8]} 39. Rd1 {[%clk 0:00:01.3]} 39... Ne4 {[%clk 0:00:55.4]} 0-1

[Event "Early-Titled-Tuesday-Blitz-January-16-2024"]
[Site "Chess.com"]
[Date "2024.01.16"]
[Round "10"]
[White "SahibSinghKnight"]
[Black "FM_VS99"]
[Result "0-1"]
[WhiteElo "2651"]
[BlackElo "2522"]
[TimeControl "180+1"]
[EndTime "9:57:16 PST"]
[Termination "FM_VS99 won by checkmate"]

1. e4 {[%clk 0:03:00.9]} 1... c5 {[%clk 0:03:00]} 2. Nf3 {[%clk 0:03:00.9]} 2...
g6 {[%clk 0:03:00.6]} 3. d4 {[%clk 0:02:57.8]} 3... cxd4 {[%clk 0:03:01.5]} 4.
Nxd4 {[%clk 0:02:58.6]} 4... Bg7 {[%clk 0:03:01.9]} 5. Be3 {[%clk 0:02:59.1]}
5... Nc6 {[%clk 0:03:02.4]} 6. Nc3 {[%clk 0:02:55.3]} 6... Nf6 {[%clk 0:03:03]}
7. Bc4 {[%clk 0:02:54.7]} 7... O-O {[%clk 0:03:03.1]} 8. Bb3 {[%clk 0:02:54.5]}
8... d6 {[%clk 0:03:03.4]} 9. f3 {[%clk 0:02:53.7]} 9... Bd7 {[%clk 0:03:04]}
10. Qd2 {[%clk 0:02:53.1]} 10... Nxd4 {[%clk 0:03:04.1]} 11. Bxd4 {[%clk
0:02:53.1]} 11... b5 {[%clk 0:03:04.8]} 12. Nd5 {[%clk 0:02:45.1]} 12... Nxd5
{[%clk 0:02:57.9]} 13. Bxg7 {[%clk 0:02:40.4]} 13... Kxg7 {[%clk 0:02:58.8]} 14.
Bxd5 {[%clk 0:02:39.3]} 14... Rc8 {[%clk 0:02:56.2]} 15. O-O-O {[%clk
0:02:34.7]} 15... a5 {[%clk 0:02:49.6]} 16. Kb1 {[%clk 0:02:32.5]} 16... e6
{[%clk 0:02:29.1]} 17. Bb7 {[%clk 0:02:25.2]} 17... Rb8 {[%clk 0:02:17.8]} 18.
Bc6 {[%clk 0:02:15.6]} 18... Bxc6 {[%clk 0:01:33]} 19. Qc3+ {[%clk 0:02:13.3]}
19... Qf6 {[%clk 0:01:25.7]} 20. Qxc6 {[%clk 0:02:12.5]} 20... d5 {[%clk
0:01:18]} 21. exd5 {[%clk 0:02:10.9]} 21... Rfc8 {[%clk 0:01:17.4]} 22. Qa6
{[%clk 0:02:05.6]} 22... Qf5 {[%clk 0:01:15.6]} 23. Rd3 {[%clk 0:02:05]} 23...
exd5 {[%clk 0:01:12.6]} 24. Qxa5 {[%clk 0:02:05.2]} 24... Rxc2 {[%clk 0:00:49]}
25. Kxc2 {[%clk 0:02:00.2]} 25... Rc8+ {[%clk 0:00:49.3]} 26. Kd2 {[%clk
0:02:00.8]} 26... Qf4+ {[%clk 0:00:47.7]} 27. Ke2 {[%clk 0:02:01.2]} 27... Rc2+
{[%clk 0:00:44.7]} 28. Rd2 {[%clk 0:02:01.5]} 28... Qc4+ {[%clk 0:00:37.5]} 29.
Ke1 {[%clk 0:01:57.4]} 29... Rc1+ {[%clk 0:00:32.5]} 30. Rd1 {[%clk 0:01:57.8]}
30... Rc2 {[%clk 0:00:32.8]} 31. Rd2 {[%clk 0:01:51.2]} 31... Rc1+ {[%clk
0:00:33.3]} 32. Kf2 {[%clk 0:01:36.5]} 32... Qc5+ {[%clk 0:00:30.1]} 33. Ke2
{[%clk 0:01:36.6]} 33... Qc4+ {[%clk 0:00:25.7]} 34. Kf2 {[%clk 0:01:35.9]}
34... Qc5+ {[%clk 0:00:26.1]} 35. Kg3 {[%clk 0:01:32.5]} 35... Qd6+ {[%clk
0:00:11.1]} 36. f4 {[%clk 0:01:32.4]} 36... Rxh1 {[%clk 0:00:11]} 37. Qc3+
{[%clk 0:01:31.9]} 37... Kh6 {[%clk 0:00:11.1]} 38. Qf3 {[%clk 0:01:25]} 38...
Re1 {[%clk 0:00:09.4]} 39. Kf2 {[%clk 0:01:22.4]} 39... Qe6 {[%clk 0:00:08.1]}
40. Rxd5 {[%clk 0:01:10]} 40... Rb1 {[%clk 0:00:07.6]} 41. Rxb5 {[%clk
0:01:08.8]} 41... Qe1# {[%clk 0:00:07.8]} 0-1

[Event "Early-Titled-Tuesday-Blitz-January-16-2024"]
[Site "Chess.com"]
[Date "2024.01.16"]
[Round "10"]
[White "FARIZA2018"]
[Black "Zakaryan_David"]
[Result "1-0"]
[WhiteElo "2518"]
[BlackElo "2636"]
[TimeControl "180+1"]
[EndTime "9:57:18 PST"]
[Termination "FARIZA2018 won on time"]

1. e4 {[%clk 0:03:00.9]} 1... c5 {[%clk 0:03:00.2]} 2. Nf3 {[%clk 0:03:00.5]}
2... Nc6 {[%clk 0:02:55.9]} 3. d4 {[%clk 0:03:00.5]} 3... Nxd4 {[%clk
0:02:56.2]} 4. Nxd4 {[%clk 0:03:00.5]} 4... c4 {[%clk 0:02:56.8]} 5. Bxc4 {[%clk
0:02:58.4]} 5... e6 {[%clk 0:02:57]} 6. O-O {[%clk 0:02:57.8]} 6... a6 {[%clk
0:02:56.3]} 7. Nc3 {[%clk 0:02:56.9]} 7... b5 {[%clk 0:02:50.6]} 8. Be2 {[%clk
0:02:56.6]} 8... Bb7 {[%clk 0:02:51.5]} 9. a3 {[%clk 0:02:56.2]} 9... Qc7 {[%clk
0:02:47.7]} 10. Be3 {[%clk 0:02:52.7]} 10... Nf6 {[%clk 0:02:44.2]} 11. Qd3
{[%clk 0:02:44.1]} 11... h5 {[%clk 0:02:43.5]} 12. h3 {[%clk 0:02:31.1]} 12...
Rc8 {[%clk 0:02:31.9]} 13. f4 {[%clk 0:02:30]} 13... d6 {[%clk 0:01:32.1]} 14.
Rad1 {[%clk 0:02:28.7]} 14... Be7 {[%clk 0:01:31.4]} 15. Nf3 {[%clk 0:02:23.9]}
15... d5 {[%clk 0:01:23.6]} 16. exd5 {[%clk 0:02:18.6]} 16... exd5 {[%clk
0:01:19.1]} 17. Ne5 {[%clk 0:02:14.7]} 17... O-O {[%clk 0:01:17.5]} 18. Bd4
{[%clk 0:02:12.7]} 18... Rfd8 {[%clk 0:01:14.1]} 19. Kh1 {[%clk 0:02:08.7]}
19... b4 {[%clk 0:01:06.7]} 20. axb4 {[%clk 0:02:07.9]} 20... Bxb4 {[%clk
0:01:06.9]} 21. Bf3 {[%clk 0:02:02.4]} 21... h4 {[%clk 0:01:06.3]} 22. Ng4
{[%clk 0:01:51]} 22... Nh5 {[%clk 0:01:03.3]} 23. Nh6+ {[%clk 0:01:33.6]} 23...
gxh6 {[%clk 0:00:58.1]} 24. Bxh5 {[%clk 0:01:33.6]} 24... Qd7 {[%clk 0:00:51.7]}
25. Qf3 {[%clk 0:01:29.3]} 25... Kh7 {[%clk 0:00:26.1]} 26. f5 {[%clk
0:01:27.2]} 26... Rg8 {[%clk 0:00:24.4]} 27. f6 {[%clk 0:01:23.1]} 27... Rg5
{[%clk 0:00:24.2]} 28. Bg4 {[%clk 0:01:22.1]} 28... Qd6 {[%clk 0:00:22]} 29.
Bxc8 {[%clk 0:01:18.7]} 29... Bxc8 {[%clk 0:00:22.8]} 30. Rde1 {[%clk
0:01:17.5]} 30... Ba5 {[%clk 0:00:20.8]} 31. Re7 {[%clk 0:01:11.3]} 31... Bc7
{[%clk 0:00:20.3]} 32. Rxf7+ {[%clk 0:01:11]} 32... Kg8 {[%clk 0:00:19.8]} 33.
Rxc7 {[%clk 0:01:09.4]} 33... Qxc7 {[%clk 0:00:20.2]} 34. f7+ {[%clk 0:01:09.5]}
34... Kf8 {[%clk 0:00:20.7]} 35. Qe3 {[%clk 0:01:07.6]} 35... Qd7 {[%clk
0:00:17.3]} 36. Bc5+ {[%clk 0:01:07.3]} 36... Qe7 {[%clk 0:00:17]} 37. Qxe7+
{[%clk 0:01:06.3]} 1-0